bitfinex-derivatives/quotes_SOLF0:USTF0_20241203
["timestamp","ask_amount","ask_price","bid_price","bid_amount"]
[1733189744723,2.22,225.82,225.63,2.22]
[1733189744925,2.22,225.82,225.65,16.58070705]
[1733189745227,2.2143,225.76,225.7,2.2149]
[1733189745531,2.22,225.75,225.65,16.58070705]
[1733189745729,2.22,225.77,225.74,2.2145]
[1733189746528,2.22,225.77,225.72,2.2146]
[1733189748026,2.22,225.77,225.7,2.2148]
[1733189748327,2.22,225.77,225.65,16.58070705]
[1733189748931,2.2147,225.73,225.67,2.2152]
[1733189749127,2.22,225.72,225.62,1.3673]
[1733189749330,2.22,225.71,225.62,1.3673]
[1733189749535,2.22,225.7,225.64,2.2155]
[1733189750034,2.22,225.7,225.62,1.3673]
[1733189750333,2.22,225.7,225.64,2.2155]
[1733189751932,2.22,225.7,225.63,2.2155]
[1733189752628,2.22,225.7,225.62,1.3673]
[1733189752629,2.215,225.69,225.62,1.3673]
[1733189753433,2.215,225.69,225.62,3.5829]
[1733189754332,2.215,225.69,225.63,2.2156]
[1733189755130,4.4349,225.7,225.64,2.2155]
[1733189755733,2.22,225.7,225.64,2.2155]
[1733189756533,4.4349,225.7,225.65,2.2154]
[1733189757241,2.22,225.7,225.67,2.2152]
[1733189757444,2.22,225.7,225.62,1.3673]
[1733189758043,2.215,225.69,225.64,2.2155]
[1733189758440,2.215,225.69,225.62,1.3673]
[1733189758634,2.22,225.7,225.61,16.58070705]
[1733189761539,2.215,225.69,225.63,10.37447037]
[1733189762244,2.2151,225.68,225.63,12.59007037]
[1733189763545,2.2153,225.66,225.6,10.37447037]
[1733189764147,2.2153,225.66,225.6,12.59037037]
[1733189764752,2.22,225.7,225.61,2.2157]
[1733189764753,2.2152,225.67,225.61,2.2157]
[1733189764947,1.4062,225.75,225.63,10.37447037]
[1733189765150,2.22,225.74,225.63,10.37447037]
[1733189765956,2.215,225.69,225.64,2.2154]
[1733189766151,4.435,225.69,225.63,10.37447037]
[1733189767444,4.435,225.69,225.64,2.2154]
[1733189767751,2.2151,225.68,225.63,10.37447037]
[1733189768055,2.2151,225.68,225.64,2.2155]
[1733189768252,4.435,225.69,225.64,2.2155]
[1733189770055,2.22,225.69,225.64,2.2155]
[1733189770251,2.2151,225.68,225.64,2.2155]
[1733189770756,2.2152,225.67,225.63,10.37447037]
[1733189770952,2.22,225.69,225.6,10.37447037]
[1733189771251,2.22,225.69,225.57,10.37447037]
[1733189771852,2.2156,225.64,225.57,10.37447037]
[1733189772052,2.22,225.63,225.57,10.37447037]
[1733189772253,2.22,225.63,225.61,2.2157]
[1733189772555,2.22,225.63,225.57,10.37447037]
[1733189773453,2.22,225.63,225.53,1.3182]
[1733189773454,2.22,225.63,225.6,10.37447037]
[1733189773754,2.22,225.63,225.57,10.37447037]
[1733189777061,2.2157,225.62,225.58,2.216]
[1733189778257,2.22,225.63,225.59,2.2159]
[1733189778865,2.22,225.63,225.44,1.3106]
[1733189778866,2.216,225.59,225.55,2.2163]
[1733189779059,4.436,225.59,225.55,2.2163]
[1733189779361,4.436,225.59,225.54,2.2165]
[1733189779758,2.2161,225.58,225.54,2.2165]
[1733189779960,2.22,225.59,225.48,10.37447037]
[1733189781055,2.22,225.59,225.45,1.3493]
[1733189781056,12.59447037,225.59,225.45,11.72377037]
[1733189781359,12.59447037,225.59,225.46,2.2172]
[1733189782062,2.2168,225.51,225.46,2.2172]
[1733189782260,2.22,225.5,225.46,2.2172]
[1733189782470,4.4369,225.5,225.46,2.2172]
[1733189782758,2.22,225.5,225.47,2.2171]
[1733189783863,2.22,225.5,225.45,11.72377037]
[1733189784066,2.22,225.5,225.45,13.94107037]
[1733189784266,4.4369,225.5,225.45,12.59177037]
[1733189784559,2.22,225.5,225.42,10.37447037]
[1733189784758,2.2175,225.44,225.38,10.37447037]
[1733189784957,2.22,225.45,225.38,10.37447037]
[1733189785161,2.22,225.45,225.41,2.2177]
[1733189785661,2.22,225.45,225.38,10.37447037]
[1733189786363,2.22,225.45,225.31,2.6579]
[1733189786364,2.22,225.45,225.31,1.3468]
[1733189786563,2.22,225.45,225.34,10.37447037]
[1733189786768,2.22,225.45,225.2,4.4396]
[1733189787069,10.37447037,225.44,225.29,10.37447037]
[1733189787761,2.17079376,225.43,225.23,0.64534]
[1733189787964,10.37447037,225.41,225.26,10.37447037]
[1733189788165,2.22,225.4,225.26,10.37447037]
[1733189788470,2.2188,225.31,225.26,10.37447037]
[1733189788767,2.22,225.3,225.26,10.37447037]
[1733189789169,2.22,225.32,225.29,10.37447037]
[1733189789358,2.6558,225.39,225.29,10.37447037]
[1733189789359,2.22,225.33,225.29,10.37447037]
[1733189789564,2.22,225.34,225.29,10.37447037]
[1733189789769,2.22,225.34,225.31,2.2187]
[1733189790166,2.22,225.35,225.32,10.37447037]
[1733189790464,2.22,225.35,225.33,2.2185]
[1733189790861,2.22,225.36,225.33,2.2185]
[1733189791061,2.22,225.37,225.34,2.2184]
[1733189791370,2.22,225.37,225.32,10.37447037]
[1733189791870,2.22,225.37,225.32,12.59297037]
[1733189792863,2.22,225.37,225.35,10.37447037]
[1733189793271,2.6955,225.46,225.35,10.37447037]
[1733189793466,2.2176,225.43,225.35,12.59277037]
[1733189793767,2.22,225.45,225.35,10.37447037]
[1733189794274,2.22,225.44,225.38,10.37447037]
[1733189794769,2.22,225.44,225.4,2.2178]
[1733189795570,2.22,225.44,225.38,10.37447037]
[1733189795871,2.22,225.44,225.35,10.37447037]
[1733189796066,4.4375,225.44,225.36,2.2182]
[1733189796267,2.22,225.44,225.35,10.37447037]
[1733189796566,2.2177,225.42,225.35,10.37447037]
[1733189796871,2.22,225.44,225.35,10.37447037]
[1733189797461,2.2177,225.42,225.37,2.2181]
[1733189797666,2.2177,225.42,225.28,10.37447037]
[1733189797667,2.22,225.44,225.32,10.37447037]
[1733189798066,2.2179,225.4,225.34,2.2184]
[1733189798262,2.2179,225.4,225.32,10.37447037]
[1733189798263,2.22,225.39,225.32,10.37447037]
[1733189798467,2.22,225.38,225.32,10.37447037]
[1733189798675,2.22,225.37,225.32,10.37447037]
[1733189799172,2.22,225.37,225.33,2.2185]
[1733189800566,2.22,225.37,225.28,10.37447037]
[1733189800968,2.2186,225.33,225.28,10.37447037]
[1733189801167,2.22,225.32,225.28,10.37447037]
[1733189801876,2.2188,225.3,225.25,12.59377037]
[1733189802072,2.22,225.32,225.25,10.37447037]
[1733189802774,2.2188,225.3,225.25,10.37447037]
[1733189803272,2.22,225.32,225.25,10.37447037]
[1733189803578,2.22,225.32,225.23,0.64534]
[1733189803579,2.22,225.32,225.28,10.37447037]
[1733189804775,2.22,225.32,225.28,12.59347037]
[1733189805770,2.22,225.32,225.28,10.37447037]
[1733189806178,2.22,225.32,225.26,2.2191]
[1733189806179,4.4387,225.32,225.26,2.2191]
[1733189806573,4.4387,225.32,225.25,10.37447037]
[1733189806574,2.2187,225.31,225.25,10.37447037]
[1733189806770,2.22,225.32,225.23,0.64534]
[1733189806971,10.37447037,225.31,225.23,0.64534]
[1733189808380,2.2193,225.25,225.23,0.64534]
[1733189808575,2.22,225.24,225.23,0.64534]
[1733189810074,4.4394,225.24,225.23,0.64534]
[1733189810680,2.22,225.24,225.23,0.64534]
[1733189811883,2.22,225.24,225.2,2.2198]
[1733189813379,2.22,225.24,225.21,5.11092508]
[1733189813682,2.22,225.24,225.22,5.11092508]
[1733189813880,2.22,225.24,225.23,2.88878374]
[1733189814281,2.22,225.24,225.19,10.37447037]
[1733189814476,2.22,225.24,225.23,5.11072978]
[1733189815081,2.22,225.24,225.23,2.88867335]
[1733189815378,2.22,225.24,225.23,5.11086074]
[1733189815775,2.22,225.24,225.23,2.88867335]
[1733189815977,4.4394,225.24,225.23,2.88867335]
[1733189816385,4.4394,225.24,225.23,5.11090029]
[1733189817680,2.22,225.24,225.15,10.37447037]
[1733189817881,2.22,225.24,225.2,0.02]
[1733189818082,2.22,225.24,225.22,0.02]
[1733189818377,2.22,225.24,225.23,5.1111062]
[1733189818577,2.22,225.24,225.23,5.1311062]
[1733189819082,2.22,225.25,225.23,7.3306062]
[1733189819283,2.22,225.25,225.24,5.1311062]
[1733189819484,2.22,225.25,225.24,5.1111062]
[1733189820282,2.22,225.25,225.24,2.88888611]
[1733189820479,2.22,225.25,225.16,0.02]
[1733189820983,2.22,225.18,225.16,0.02]
[1733189821179,2.22,225.17,225.15,0.02]
[1733189821485,2.2204,225.14,225.13,1.00426]
[1733189821686,4.4404,225.14,225.13,4.44812481]
[1733189821985,4.4404,225.14,225.13,0.98426]
[1733189823280,2.22,225.14,225.13,0.98426]
[1733189823980,2.22,225.14,225.13,4.450524]
[1733189824780,2.22,225.16,225.13,14.82499437]
[1733189824980,1.3659,225.24,225.14,3.466264]
[1733189825185,2.22,225.23,225.18,2.2199]
[1733189825484,2.22,225.22,225.16,10.37447037]
[1733189825690,2.22,225.22,225.17,3.46936755]
[1733189825885,2.22,225.22,225.16,10.37447037]
[1733189825886,2.22,225.22,225.18,3.46936755]
[1733189826082,2.22,225.22,225.19,5.68926755]
[1733189826282,2.22,225.22,225.19,2.2199]
[1733189826985,2.22,225.22,225.16,10.37447037]
[1733189827189,2.22,225.22,225.14,1.2807]
[1733189827190,2.22,225.22,225.19,10.37447037]
[1733189827386,2.22,225.22,225.2,3.47096996]
[1733189827595,2.22,225.22,225.21,3.47096996]
[1733189828688,2.22,225.22,225.19,10.37447037]
[1733189829687,3.5845,225.38,225.2,5.69679582]
[1733189829894,3.5845,225.38,225.28,10.37447037]
[1733189830087,2.2186,225.33,225.26,2.2192]
[1733189830290,2.2186,225.33,225.16,2.16944024]
[1733189830291,2.22,225.32,225.19,10.37447037]
[1733189830688,2.22,225.32,225.19,12.59437037]
[1733189830895,2.22,225.32,225.19,10.37447037]
[1733189831196,2.2193,225.26,225.2,2.2198]
[1733189831385,2.22,225.25,225.2,2.2198]
[1733189832092,2.22,225.25,225.19,10.37447037]
[1733189832989,2.22,225.25,225.2,2.2198]
[1733189833184,2.22,225.25,225.14,1.2807]
[1733189833487,2.22,225.25,225.16,10.37447037]
[1733189834287,4.4393,225.25,225.19,2.2199]
[1733189835198,2.22,225.25,225.2,2.2197]
[1733189835788,4.4393,225.25,225.19,10.37447037]
[1733189836400,4.4393,225.25,225.19,12.59427037]
[1733189836890,2.22,225.25,225.19,10.37447037]
[1733189837090,2.22,225.25,225.13,11.35873037]
[1733189837491,2.2197,225.21,225.13,11.35873037]
[1733189837692,2.22,225.2,225.13,11.35873037]
[1733189838997,2.22,225.18,225.13,13.57913037]
[1733189839496,2.22,225.2,225.13,11.35873037]
[1733189840295,4.4398,225.2,225.14,2.2203]
[1733189840898,4.4398,225.2,225.16,10.37447037]
[1733189840899,2.22,225.2,225.16,10.37447037]
[1733189841493,2.22,225.2,225.16,12.59457037]
[1733189841795,2.22,225.2,225.13,11.35873037]
[1733189842196,2.22,225.18,225.13,11.35873037]
[1733189842497,2.22,225.2,225.13,0.98426]
[1733189842795,2.2203,225.15,225.13,0.98426]
[1733189842995,2.22,225.14,225.13,0.98426]
[1733189844798,2.22,225.23,225.13,11.35873037]
[1733189844988,11.75687037,225.32,225.17,10.37447037]
[1733189845191,2.2191,225.28,225.2,10.37447037]
[1733189845394,3.5761,225.31,225.23,2.2194]
[1733189845701,3.5761,225.31,225.2,10.37447037]
[1733189846392,2.219,225.29,225.24,2.2193]
[1733189846591,3.5761,225.31,225.2,10.37447037]
[1733189846790,3.5761,225.31,225.23,10.37447037]
[1733189847091,5.7949,225.31,225.25,2.2193]
[1733189848300,3.5761,225.31,225.21,1.2944]
[1733189849298,3.5761,225.31,225.23,2.2195]
[1733189849299,2.2191,225.28,225.23,2.2195]
[1733189851503,2.22,225.29,225.25,2.2192]
[1733189851698,2.22,225.29,225.23,10.37447037]
[1733189852101,2.22,225.29,225.27,2.2191]
[1733189853793,2.22,225.29,225.26,10.37447037]
[1733189853794,2.22,225.29,225.28,2.219]
[1733189854798,10.37447037,225.41,225.3,2.2187]
[1733189854799,2.22,225.33,225.3,2.2187]
[1733189854999,4.4384,225.34,225.26,10.37447037]
[1733189855802,2.22,225.34,225.3,2.2188]
[1733189856106,2.22,225.34,225.29,10.37447037]
[1733189856300,2.22,225.35,225.31,2.2187]
[1733189856800,10.37447037,225.44,225.29,10.37447037]
[1733189856999,2.22,225.42,225.32,2.2186]
[1733189857496,10.37447037,225.44,225.32,2.2186]
[1733189857497,2.22,225.41,225.32,2.2186]
[1733189858001,2.2182,225.37,225.32,2.2186]
[1733189858196,2.22,225.36,225.26,10.37447037]
[1733189858395,2.22,225.35,225.23,11.68787037]
[1733189858595,2.2187,225.32,225.27,2.219]
[1733189858798,2.22,225.34,225.23,10.37447037]
[1733189859598,2.2186,225.32,225.26,10.37447037]
[1733189860898,2.2186,225.32,225.27,2.2191]
[1733189862398,2.2187,225.31,225.27,2.2191]
[1733189862595,2.22,225.34,225.23,10.37447037]
[1733189863298,2.2187,225.31,225.23,10.37447037]
[1733189863703,2.2187,225.31,225.26,2.2191]
[1733189864403,2.2188,225.3,225.26,2.2191]
[1733189864799,2.22,225.29,225.26,2.2191]
[1733189866201,2.22,225.29,225.28,2.219]
[1733189866398,2.22,225.35,225.26,10.37447037]
[1733189866603,2.22,225.36,225.31,10.37447037]
[1733189867402,2.22,225.36,225.33,2.2185]
[1733189868102,2.2178,225.4,225.33,2.2185]
[1733189868302,2.22,225.39,225.33,2.2185]
[1733189868697,2.22,225.39,225.32,2.2186]
[1733189869997,2.2181,225.37,225.32,2.2186]
[1733189870203,2.2181,225.37,225.33,2.2185]
[1733189871299,2.2181,225.37,225.31,10.37447037]
[1733189872997,2.2181,225.37,225.32,2.2185]
[1733189874002,2.2181,225.37,225.33,2.2185]
[1733189875903,2.2181,225.37,225.31,12.59307037]
[1733189876306,2.2181,225.37,225.31,10.37447037]
[1733189876906,2.22,225.39,225.32,2.2185]
[1733189877106,2.2181,225.37,225.32,2.2185]
[1733189877799,2.22,225.36,225.32,2.2185]
[1733189880808,2.22,225.36,225.33,2.2185]
[1733189881608,2.22,225.36,225.31,10.37447037]
[1733189881804,1.3998,225.43,225.34,10.37447037]
[1733189882005,2.22,225.39,225.37,10.37447037]
[1733189882205,2.22,225.39,225.37,12.59257037]
[1733189882402,1.3998,225.43,225.37,12.59257037]
[1733189882403,2.22,225.43,225.37,10.37447037]
[1733189882602,2.22,225.44,225.37,10.37447037]
[1733189883711,2.22,225.43,225.37,12.59257037]
[1733189884108,2.22,225.43,225.34,10.37447037]
[1733189885408,3.5719,225.43,225.35,2.2183]
[1733189885602,3.5719,225.43,225.32,1.2827]
[1733189885807,3.5719,225.43,225.34,2.2184]
[1733189887624,2.218,225.38,225.32,1.2827]
[1733189887811,2.22,225.37,225.27,10.37447037]
[1733189888105,2.22,225.36,225.27,10.37447037]
[1733189888305,2.22,225.35,225.24,10.37447037]
[1733189888510,2.22,225.34,225.24,10.37447037]
[1733189888704,2.22,225.34,225.26,2.2192]
[1733189889606,8.88351298,225.34,225.27,6.66351298]
[1733189890216,2.2187,225.31,225.29,6.66351298]
[1733189891011,8.88351298,225.34,225.27,6.66351298]
[1733189891212,2.2188,225.3,225.27,6.66351298]
[1733189891510,2.22,225.29,225.24,10.41160614]
[1733189892919,2.22,225.29,225.26,2.2192]
[1733189894112,2.22,225.29,225.24,10.41160614]
[1733189894316,2.2191,225.28,225.24,12.63090614]
[1733189895013,2.22,225.29,225.24,10.41160614]
[1733189896919,4.4389,225.29,225.25,2.2193]
[1733189897417,2.22,225.29,225.25,2.2193]
[1733189899720,2.22,225.29,225.24,10.41160614]
[1733189900116,2.2191,225.27,225.24,10.41160614]
[1733189900319,2.22,225.29,225.22,2.98665]
[1733189900523,2.22,225.29,225.22,0.76705]
[1733189900719,2.2195,225.23,225.22,0.76705]
[1733189900914,4.4395,225.23,225.22,0.76705]
[1733189901220,2.22,225.23,225.22,0.76705]
[1733189901421,2.22,225.23,225.22,2.98665]
[1733189902415,2.22,225.23,225.22,0.76705]
[1733189906523,4.4395,225.23,225.22,0.76705]
[1733189909325,1.3293,225.28,225.22,0.76705]
[1733189909519,2.2192,225.26,225.22,0.76705]
[1733189909924,2.22,225.27,225.24,2.2193]
[1733189911124,11.71210614,225.38,225.24,10.41160614]
[1733189911330,2.22,225.37,225.27,10.41160614]
[1733189911828,2.2184,225.34,225.3,2.2187]
[1733189912225,2.22,225.37,225.27,10.41160614]
[1733189912422,2.22,225.36,225.33,2.2184]
[1733189912621,2.22,225.36,225.3,10.41160614]
[1733189913027,2.22,225.35,225.3,10.41160614]
[1733189913531,2.22,225.35,225.34,6.65836854]
[1733189916631,2.22,225.35,225.32,6.65836854]
[1733189917030,2.22,225.35,225.34,6.65836854]
[1733189917528,2.7981,225.42,225.34,6.65836854]
[1733189917529,2.2179,225.39,225.34,6.65836854]
[1733189917725,2.22,225.38,225.34,6.65836854]
[1733189919236,4.438,225.38,225.32,8.87686854]
[1733189919734,4.438,225.38,225.33,2.2184]
[1733189920327,2.22,225.38,225.32,6.65836854]
[1733189922736,2.2184,225.34,225.32,6.65836854]
[1733189923033,6.65836854,225.39,225.32,6.65836854]
[1733189923034,4.4385,225.33,225.32,6.65836854]
[1733189923235,2.22,225.33,225.28,6.65836854]
[1733189923839,2.2187,225.31,225.28,6.65836854]
[1733189924134,2.22,225.33,225.28,6.65836854]
[1733189924641,2.2186,225.32,225.28,6.65836854]
[1733189924939,2.22,225.33,225.28,6.65836854]
[1733189926844,2.22,225.33,225.26,6.65836854]
[1733189927050,8.87836854,225.33,225.26,6.65836854]
[1733189927745,2.219,225.27,225.26,6.65836854]
[1733189927942,4.439,225.27,225.26,6.65836854]
[1733189929650,2.2192,225.25,225.24,6.65836854]
[1733189930046,2.2192,225.25,225.22,6.65836854]
[1733189934044,2.22,225.27,225.22,6.65836854]
[1733189934753,2.2194,225.25,225.22,6.65836854]
[1733189935344,2.22,225.27,225.22,6.65836854]
[1733189936555,2.2194,225.25,225.22,6.65836854]
[1733189937454,2.22,225.27,225.22,6.65836854]
[1733189938447,2.22,225.27,225.21,2.2197]
[1733189938652,2.22,225.27,225.22,6.65836854]
[1733189940554,2.2194,225.25,225.22,6.65836854]
[1733189940950,2.22,225.27,225.22,6.65836854]
[1733189941154,2.22,225.27,225.2,6.65836854]
[1733189941455,8.87836854,225.27,225.15,1.3947]
[1733189941651,6.65836854,225.25,225.15,1.3947]
[1733189941849,6.65836854,225.22,225.15,6.65836854]
[1733189942048,2.22,225.21,225.15,6.65836854]
[1733189942352,2.22,225.18,225.15,6.65836854]
[1733189943254,2.22,225.18,225.14,0.94287]
[1733189943255,2.22,225.21,225.17,6.65836854]
[1733189943449,2.22,225.21,225.2,6.65836854]
[1733189945552,2.22,225.21,225.2,8.87816854]
[1733189945771,2.22,225.25,225.2,6.65836854]
[1733189945959,2.22,225.25,225.24,6.65836854]
[1733189947056,2.2189,225.29,225.24,6.65836854]
[1733189947257,1.3022,225.33,225.28,6.65836854]
[1733189947553,2.22,225.32,225.28,6.65836854]
[1733189948351,2.22,225.32,225.26,6.65836854]
[1733189948958,2.219,225.29,225.26,6.65836854]
[1733189949751,2.2189,225.3,225.26,8.87756854]
[1733189949955,2.2189,225.3,225.28,6.65836854]
[1733189950458,2.22,225.32,225.28,6.65836854]
[1733189950654,2.22,225.32,225.3,6.65836854]
[1733189950855,2.22,225.36,225.3,6.65836854]
[1733189951159,2.22,225.36,225.35,6.65836854]
[1733189951357,2.22,225.38,225.35,6.65836854]
[1733189951655,2.22,225.4,225.37,6.65836854]
[1733189951961,2.22,225.4,225.39,6.65836854]
[1733189952354,2.22,225.4,225.35,2.2183]
[1733189952558,2.22,225.4,225.38,6.65836854]
[1733189953260,6.65836854,225.46,225.38,6.65836854]
[1733189953460,2.2177,225.42,225.38,6.65836854]
[1733189955154,2.2177,225.42,225.38,3.88299833]
[1733189956166,2.22,225.42,225.4,6.65836854]
[1733189956963,2.22,225.42,225.38,6.65836854]
[1733189957260,2.22,225.42,225.29,4.98480477]
[1733189957261,2.22,225.42,225.29,2.771]
[1733189957564,6.65836854,225.41,225.34,6.65836854]
[1733189957757,2.2179,225.4,225.34,6.65836854]
[1733189957965,2.22,225.42,225.36,6.65836854]
[1733189958965,2.218,225.39,225.36,6.65836854]
[1733189959263,2.22,225.42,225.36,4.62514134]
[1733189960265,2.22,225.42,225.29,2.771]
[1733189960266,6.65836854,225.39,225.32,6.65836854]
[1733189960966,2.2183,225.36,225.32,6.65836854]
[1733189961167,2.22,225.35,225.32,6.65836854]
[1733189961363,2.22,225.35,225.34,6.65836854]
[1733189962469,2.22,225.35,225.32,6.65836854]
[1733189963072,2.2184,225.34,225.32,6.65836854]
[1733189963464,2.22,225.35,225.32,6.65836854]
[1733189963659,2.2185,225.34,225.32,6.65836854]
[1733189963969,2.22,225.35,225.32,6.65836854]
[1733189964268,2.2185,225.33,225.31,6.65836854]
[1733189964471,2.22,225.35,225.31,6.65836854]
[1733189964769,2.22,225.35,225.33,6.65836854]
[1733189965769,2.22,225.35,225.31,6.65836854]
[1733189966268,2.22,225.35,225.29,6.65836854]
[1733189966563,2.22,225.35,225.28,6.65836854]
[1733189966765,2.2187,225.32,225.28,6.65836854]
[1733189966964,2.22,225.35,225.29,6.65836854]
[1733189967367,2.2188,225.3,225.29,6.65836854]
[1733189967669,4.4188,225.3,225.29,6.65836854]
[1733189967861,2.2,225.3,225.27,6.65836854]
[1733189968066,2.219,225.28,225.27,6.65836854]
[1733189969066,2.2,225.34,225.27,6.65836854]
[1733189969272,2.2,225.34,225.33,6.65836854]
[1733189969969,2.2,225.34,225.29,6.65836854]
[1733189970468,2.2188,225.3,225.29,6.65836854]
[1733189971470,2.2,225.34,225.23,1.2913]
[1733189971771,2.2,225.34,225.29,6.65836854]
[1733189972169,2.2188,225.31,225.29,6.65836854]
[1733189972374,2.2,225.34,225.29,6.65836854]
[1733189972564,2.219,225.28,225.27,6.65836854]
[1733189975278,2.2,225.29,225.27,6.65836854]
[1733189975279,4.419,225.29,225.27,6.65836854]
[1733189975972,305.0631945,225.45,225.28,6.65836854]
[1733189976168,2.2,225.57,225.44,6.65836854]
[1733189976373,10.83206854,225.61,225.52,6.65836854]
[1733189976374,2.2,225.56,225.52,6.65836854]
[1733189976571,2.2,225.55,225.52,6.65836854]
[1733189976975,2.2,225.55,225.5,6.65836854]
[1733189977274,2.2,225.55,225.52,6.65836854]
[1733189977873,2.2,225.54,225.52,6.65836854]
[1733189978078,2.2,225.53,225.47,2.2171]
[1733189978276,2.2,225.53,225.52,6.65836854]
[1733189978474,1.31,225.53,225.52,6.65836854]
[1733189979071,2.2162,225.57,225.52,6.65836854]
[1733189979482,2.2,225.56,225.54,6.65836854]
[1733189979680,2.2164,225.55,225.5,10.38716907]
[1733189980384,2.2,225.56,225.5,10.38716907]
[1733189980681,4.4163,225.56,225.5,10.38716907]
[1733189981781,2.2163,225.56,225.5,10.38716907]
[1733189982081,2.2,225.55,225.5,10.38716907]
[1733189982282,2.2,225.54,225.5,10.38716907]
[1733189983180,4.1737,225.61,225.5,10.38716907]
[1733189983379,4.4159,225.6,225.53,10.38716907]
[1733189983780,2.2,225.59,225.53,10.38716907]
[1733189984278,4.416,225.59,225.53,10.38716907]
[1733189984684,2.2,225.59,225.53,10.38716907]
[1733189984883,2.2,225.59,225.5,10.38716907]
[1733189985686,2.2163,225.56,225.5,10.38716907]
[1733189986288,2.2166,225.54,225.5,10.38716907]
[1733189986486,2.2,225.53,225.5,10.38716907]
[1733189986687,2.2,225.52,225.5,10.38716907]
[1733189986877,2.2,225.51,225.5,10.38716907]
[1733189987586,2.2,225.51,225.47,10.38716907]
[1733189988085,2.2169,225.5,225.47,10.38716907]
[1733189989284,2.2,225.51,225.41,10.38716907]
[1733189990687,2.2171,225.48,225.41,12.60486907]
[1733189990988,2.2,225.51,225.41,12.60486907]
[1733189991791,2.2172,225.47,225.41,10.38716907]
[1733189991986,2.28,225.46,225.41,10.38716907]
[1733189992181,2.28,225.45,225.41,10.38716907]
[1733189992384,2.28,225.44,225.41,10.38716907]
[1733189992585,2.28,225.43,225.41,10.38716907]
[1733189994190,2.28,225.43,225.41,12.60486907]
[1733189995085,2.217,225.49,225.41,10.38716907]
[1733189995388,2.28,225.48,225.44,10.38716907]
[1733189996285,4.4971,225.48,225.44,10.38716907]
[1733189998585,2.28,225.48,225.44,10.38716907]
[1733189998785,2.2172,225.47,225.44,10.38716907]
[1733189998984,2.2172,225.47,225.41,10.38716907]
[1733189999584,2.2174,225.45,225.41,10.38716907]
[1733190000389,2.28,225.48,225.41,10.38716907]
[1733190000590,2.28,225.48,225.4,0.40378]
[1733190000886,13.98924715,225.47,225.23,2.3]
[1733190001089,13.98924715,225.47,225.18,18.43963961]
[1733190001090,13.98924715,225.47,225.32,10.38716907]
[1733190001290,13.98924715,225.47,225.33,2.2185]
[1733190001485,2.2176,225.43,225.32,10.38716907]
[1733190001694,2.28,225.42,225.32,10.38716907]
[1733190001992,2.2176,225.43,225.35,10.38716907]
[1733190002287,2.2176,225.43,225.28,10.38716907]
[1733190002288,2.28,225.42,225.38,10.38716907]
[1733190002488,2.28,225.41,225.38,10.38716907]
[1733190002691,2.28,225.4,225.38,10.38716907]
[1733190002893,2.28,225.4,225.39,2.2179]
[1733190003088,2.28,225.41,225.38,10.38716907]
[1733190003289,2.6902,225.5,225.39,10.38716907]
[1733190003490,2.28,225.49,225.44,12.60456907]
[1733190003792,2.28,225.49,225.44,10.38716907]
[1733190004596,2.28,225.49,225.47,2.2171]
[1733190005292,2.28,225.48,225.47,2.2171]
[1733190005793,2.28,225.48,225.47,12.60426907]
[1733190008905,2.28,225.48,225.47,10.38716907]
[1733190009201,2.28,225.48,225.44,10.38716907]
[1733190009794,2.2172,225.47,225.44,10.38716907]
[1733190010503,4.4971,225.48,225.44,10.38716907]
[1733190011206,2.2173,225.46,225.41,12.60486907]